Cogmind - Beta 9.6 @@@ ROGUE MODE // 2020.04.27 @ 18:12:21 // Winter2019/RPGLIKE Player: Vincent Result: Destroyed by G-34 Mercenary with Small Laser Performance ------------- Evolutions (1) 500 Regions Visited (2) 400 Robots Destroyed (28) 140 Value Destroyed (547) 547 Prototype IDs (4) 80 Alien Tech Used (0) 0 Bonus (0) 0 TOTAL SCORE: 1667 Bonus ------- None Cogmind --------- Core Integrity 0/600 Matter 372/400 Energy 250/250 System Corruption 0% Temperature Cool (12) Movement Treading (160) Location -9/Materials Parts ------- > --- POWER (1) -------- Ion Engine > --- PROPULSION (2) --- Light Treads Light Treads > --- UTILITY (1) ------ Medium Matter Pod > --- WEAPON (2) ------- Assault Rifle Light Assault Rifle > --- INVENTORY (0) ---- (None) Peak State ------------ > --- POWER ------------ Light Ion Engine > --- PROPULSION ------- Aluminum Leg > --- UTILITY ---------- Improved Terrain Scanner > --- WEAPON ----------- Assault Rifle Light Assault Rifle > --- INVENTORY -------- (None) [Rating: 6] Favorites ----------- Power Light Ion Engine Engine Light Ion Engine Propulsion Aluminum Leg Treads Light Treads Leg Aluminum Leg Utility Medium Matter Pod Device Improved Terrain Scanner Storage Medium Matter Pod Weapon Assault Rifle Ballistic Gun Assault Rifle Build | -11 -10 -9 ------- Run | Scr Mat Mat Slots Evolved 2 | 1 1 . Power . | . . . Propulsion 1 | . 1 . Utility . | . . . Weapon 1 | 1 . . Parts Attached 17 | 5 9 3 Power 6 | 1 4 1 Engine 6 | 1 4 1 Core . | . . . Reactor . | . . . Propulsion 6 | 1 3 2 Treads 2 | . . 2 Leg 4 | 1 3 . Wheel . | . . . Hover . | . . . Flight . | . . . Utility 2 | 1 1 . Device 1 | 1 . . Storage 1 | . 1 . Processor . | . . . Hackware . | . . . Protection . | . . . Artifact . | . . . Weapon 3 | 2 1 . Energy Gun . | . . . Energy Cannon . | . . . Ballistic Gun 3 | 2 1 . Ballistic Cannon . | . . . Launcher . | . . . Special Weapon . | . . . Impact Weapon . | . . . Slashing Weapon . | . . . Piercing Weapon . | . . . Special Melee Weapon . | . . . Unidentified Prototypes . | . . . Parts Lost . | . . . Power . | . . . Propulsion . | . . . Utility . | . . . Weapon . | . . . Highest Loss Streak . | . . . Average Slot Usage (%) 96 | . 97 91 Engine 19 | . 19 16 Treads 2 | . . 17 Leg 17 | . 19 7 Storage 18 | . 19 16 Ballistic Gun 36 | . 37 33 Naked Turns . | . . . Heaviest Build 10 | 7 10 10 Greatest Support 40 | 10 10 40 Greatest Overweight (x) 1 | 1 . . Average Overweight (x) . | . . . Largest Inventory Capacity . | . . . Average Capacity . | . . . Most Carried . | . . . Average Carried . | . . . Final Capacity . | . . . Final Carried . | . . . Class Distribution -------------------- 100% | Mutant Dominant Class ---------------- Mutant | -10/Materials Mutant | -9/Materials Resources | -11 -10 -9 ----------- Run | Scr Mat Mat Matter Collected 896 | 290 532 74 Remotely . | . . . Salvage Created 643 | 158 392 93 Parts 55 | 11 34 10 Haulers Intercepted . | . . . Recyclers Shooed 3 | 1 1 1 Parts Field Recycled . | . . . Retrieved Matter . | . . . Parts Self-Destructed . | . . . Prevented . | . . . Kills | -11 -10 -9 ------- Run | Scr Mat Mat Combat Hostiles Destroyed 19 | . 17 2 Guns 19 | . 17 2 Classes Destroyed 7 | 3 3 1 Worker 1 | 1 . . Tunneler 4 | 4 . . Recycler 1 | 1 . . Watcher 3 | . 2 1 Swarmer 9 | . 9 . Grunt 9 | . 8 1 Sentry 1 | . . 1 Best Kill Streak 5 | 5 4 1 Combat Bots Only 3 | . 3 1 Max Kills in Single Turn 2 | 1 2 1 Gunslinging 1 | . 1 . Exploded . | . . . Melee . | . . . Uniques/NPCs Destroyed . | . . . Combat | -11 -10 -9 -------- Run | Scr Mat Mat Damage Taken 1448 | . 881 567 Core 1194 | . 735 459 Absorbed by Shields . | . . . Redirected to Core 792 | . 449 343 Core Remaining (%) 82 | 100 64 . Volleys Fired 115 | 14 83 18 Largest 2 | 2 2 2 Hottest 40 | 40 40 40 Shots Fired 224 | 22 166 36 Gun 224 | 22 166 36 Cannon . | . . . Launcher . | . . . Special . | . . . Kinetic 224 | 22 166 36 Thermal . | . . . Explosive . | . . . Electromagnetic . | . . . Robot Hit Streak 14 | 11 14 4 Robot Miss Streak 5 | 1 5 3 Penetration Max . | . . . Secondary Targets 3 | . 3 . Max Gunslinging Chain 1 | . 1 . Shots Hit Robots 127 | 14 93 20 Core Hits 48 | 8 33 7 Critical Hits 1 | . 1 . Critical Kills . | . . . Critical Parts Destroyed 1 | . 1 . Melee Attacks . | . . . Impact . | . . . Slashing . | . . . Piercing . | . . . Sneak Attacks . | . . . Combat Hostiles . | . . . Follow-up Attacks . | . . . Damage Inflicted 1206 | 144 825 237 Guns 1206 | 144 825 237 Cannons . | . . . Explosions . | . . . Melee . | . . . Ramming . | . . . Kinetic 1206 | 144 825 237 Thermal . | . . . Explosive . | . . . Electromagnetic . | . . . Impact . | . . . Slashing . | . . . Piercing . | . . . Highest Corruption . | . . . Average Corruption . | . . . Corruption Purged . | . . . Overload Shots . | . . . Overflow Damage . | . . . Projectiles . | . . . Explosions . | . . . Melee . | . . . Knockbacks . | . . . Impact . | . . . Kinetic . | . . . Secondary . | . . . Self-Inflicted Damage . | . . . Shots . | . . . Rammed . | . . . Targets Rammed . | . . . Kicked . | . . . Crushed . | . . . Highest Temperature 28 | . 24 28 Average Temperature 9 | . 8 12 Received Heat Transfer 516 | . 231 285 Siege Activations . | . . . Robots Corrupted . | . . . Combat Hostiles . | . . . Parts Fried . | . . . Impact Corruptions . | . . . Robots Melted . | . . . Combat Hostiles . | . . . Parts Melted . | . . . Heat Transferred . | . . . Parts Sabotaged . | . . . Parts Stolen . | . . . Parts Stripped . | . . . Power Chain Reactions . | . . . Missiles Intercepted . | . . . Alert | -11 -10 -9 ------- Run | Scr Mat Mat Peak Influence 372 | 30 372 150 Average Influence 108 | 8 121 90 Maximum Alert Level 1 | . 1 . Low Security (%) 87 | 100 83 100 Level 1 12 | . 16 . Level 2 . | . . . Level 3 . | . . . Level 4 . | . . . Level 5 . | . . . High Security . | . . . Max Security . | . . . Squads Dispatched 5 | . 4 1 Investigation 3 | . 2 1 Extermination . | . . . Reinforcement 2 | . 2 . Assault . | . . . Garrison . | . . . Intercept . | . . . Construction Impeded . | . . . Haulers Reinforced . | . . . Stealth | -11 -10 -9 --------- Run | Scr Mat Mat Distress Signals 5 | . 4 1 Communications Jammed . | . . . Distress Signals . | . . . Times Spotted 47 | . 35 12 Peak Tracking Total 10 | . 4 10 Tactical Retreats 1 | . 1 . Traps | -11 -10 -9 ------- Run | Scr Mat Mat Traps Triggered 4 | . 3 1 Indirectly . | . . . Trap Hack Attempts . | . . . Triggered . | . . . Disarmed . | . . . Reprogrammed . | . . . Reused . | . . . Traps Extracted . | . . . Installed . | . . . Triggered . | . . . Machines | -11 -10 -9 ---------- Run | Scr Mat Mat Machines Disabled 1 | . 1 . Max in Single Turn 1 | . 1 . Machines Sabotaged . | . . . Garrisons Compromised . | . . . Overloaded Fab Kills . | . . . Fab Network Shutdowns . | . . . Hacking | -11 -10 -9 --------- Run | Scr Mat Mat Machines Accessed 9 | . 9 . Terminals 6 | . 6 . Fabricators . | . . . Repair Stations 1 | . 1 . Recycling Units 2 | . 2 . Scanalyzers . | . . . Garrison Access . | . . . Total Hacks 24 | . 24 . Successful 19 | . 19 . Failed 5 | . 5 . Catastrophic . | . . . Database Lockouts . | . . . Manual . | . . . Terminals 16 | . 16 . Fabricators . | . . . Repair Stations 3 | . 3 . Recycling Units 5 | . 5 . Scanalyzers . | . . . Garrison Access . | . . . Terminal Hacks 14 | . 14 . Record 3 | . 3 . Prototype ID Bank 2 | . 2 . Emergency Access Points 2 | . 2 . Terminal Index 1 | . 1 . Alert Level 3 | . 3 . Unreport Threat 1 | . 1 . Locate Traps 1 | . 1 . Zone Layout 1 | . 1 . Fabricator Hacks . | . . . Repair Station Hacks 3 | . 3 . Scan Component 2 | . 2 . Repair 1 | . 1 . Recycling Unit Hacks 2 | . 2 . Process 2 | . 2 . Scanalyzer . | . . . Garrison Access Hacks . | . . . Unauthorized Hacks . | . . . Terminals . | . . . Fabricators . | . . . Repair Stations . | . . . Recycling Units . | . . . Scanalyzers . | . . . Garrison Access . | . . . Data Cores Recovered . | . . . Used . | . . . Hacking Detections 8 | . 8 . Full Trace Events 2 | . 2 . Feedback Events . | . . . Feedback Blocked . | . . . Robot Schematics Acquired . | . . . Robots Built . | . . . Matter . | . . . Time . | . . . Total Robot Build Rating . | . . . Part Schematics Acquired . | . . . Parts Built . | . . . Matter . | . . . Time . | . . . Total Part Build Rating . | . . . Parts Repaired 1 | . 1 . Time 26 | . 26 . Parts Recycled . | . . . Recycled Matter 10 | . 10 . Retrieved Matter . | . . . Retrieved Components . | . . . Parts Scanalyzed . | . . . Part Schematics Acquired . | . . . Parts Damaged . | . . . Bothacking | -11 -10 -9 ------------ Run | Scr Mat Mat Used RIF Installer . | . . . Robots Hacked . | . . . Non-combat . | . . . Combat . | . . . Robot Hacks Applied . | . . . Relay Couplers Released . | . . . Robots Rewired . | . . . Allies Hacked . | . . . Hacks Repelled . | . . . Allies | -11 -10 -9 -------- Run | Scr Mat Mat Total Allies . | . . . Largest Group . | . . . Highest-Rated Group . | . . . Highest-Rated Ally . | . . . Total Orders . | . . . Ally Attacks . | . . . Total Damage . | . . . Kills . | . . . Allies Corrupted . | . . . Allies Melted . | . . . Intel | -11 -10 -9 ------- Run | Scr Mat Mat Robot Analysis Total . | . . . Derelict Logs Recovered . | . . . Drone Launches . | . . . Drone Recoveries . | . . . Exploration | -11 -10 -9 ------------- Run | Scr Mat Mat Turns Passed 2013 | 146 1557 310 Spaces Moved 1283 | 88 1012 183 Core 12 | 12 . . Treads 80 | . . 80 Legs 1191 | 76 1012 103 Wheels . | . . . Hover . | . . . Flight . | . . . Fastest Speed 50 | 50 120 120 Average Speed 122 | 113 120 137 Slowest Speed 160 | 120 120 160 Overloaded Moves . | . . . Propulsion Burnouts . | . . . Robots Hopped . | . . . Cave-ins Triggered . | . . . Exploration Rate (%) 38 | 4 96 14 Regions Visited 2 Branch Regions . Pre-discovered Areas . | . . . Known Exits Taken . | . . . Unknown Exits Taken 2 | 1 1 . Scrap Searched . | . . . Spaces Dug . | . . . Terrain Destroyed . | . . . Melee . | . . . Projectile . | . . . AOE . | . . . Actions | -11 -10 -9 --------- Run | Scr Mat Mat Total 1524 | 111 1204 209 Wait 72 | 5 67 . Move 1281 | 87 1011 183 Hop . | . . . Pick Up . | . . . Fast Attach 17 | 5 9 3 Attach . | . . . Detach . | . . . Swap . | . . . Drop 10 | . 8 2 Fire 115 | 14 83 18 Melee . | . . . Ram . | . . . Kick . | . . . Crush . | . . . Escape Stasis . | . . . Rewire . | . . . Trap . | . . . Miscellaneous 29 | . 26 3 Route ------- -11/Scrapyard -10/Materials (discovered 4 exits: *Mat x3 / [*Min]) -9/Materials History --------- Turn | Location | Event 21 | -11/Scrapyard | Discovered new exit (range 14) 74 | -11/Scrapyard | Upgraded with Weapon slot (x1) 147 | -11/Scrapyard | Entered Materials 169 | -10/Materials | Discovered new exit (range 5) 313 | -10/Materials | Build established: Mutant 361 | -10/Materials | Discovered new exit (range 15) 815 | -10/Materials | Discovered new exit (range 8) 868 | -10/Materials | Reached level 2 974 | -10/Materials | Repaired Lgt. Assault Rifle? 996 | -10/Materials | Discovered new exit (range 3) 1695 | -10/Materials | Upgraded with Propulsion slot (x1) 1704 | -10/Materials | Entered another Materials area 1706 | -9/Materials | Reached level 3 1987 | -9/Materials | Core integrity fell below 50% 2005 | -9/Materials | Core integrity fell below 20% 2014 | -9/Materials | Destroyed by G-34 Mercenary with Small Laser Last Messages --------------- 01860_ Dropped Ion Engine. 01861_ Acquired Ion Engine. 01861_ R-06 Scavenger collects Lgt. Armor Plating. 01865_ K-01 Serf collects debris. 01867_ Acquired 34 matter. 01869_ Acquired 4 matter. 01870_ K-01 Serf collects debris. 01896_ R-06 Scavenger collects Beam Rifle. 01901_ K-01 Serf collects debris. 01906_ Acquired 4 matter. 01932_ G-34 Mercenary destroyed. 01938_ K-01 Serf collects debris. 01948_ R-06 Scavenger collects Heat Sink. 01951_ R-06 Scavenger collects Aluminum Leg. 01953_ Protomatter-11 decays. 01960_ K-01 Serf cleans the Integration Channel. 01977_ U-05 Engineer lays Concrete. 02013_ Triggered Alarm Trap. 02013_ An alarm sounds. 02013_ ALERT: Alarm triggered, dispatching investigation squad. Map ----- +----------------------------------------------------+ | ?????????????????????????????????????????????????? | | ?????????????????????????????????????????????????? | | ?????????????????????????????????????????????????? | | ?????????????????????????????????????????????????? | | ?????????????????????????????????????????????????? | | ?????????????????????????????????????????????????? | | ?????????????????????????????????????????????????? | | ?????????????????????????????????????????????????? | | ?????????????????????????????????????????????????? | | ?????????????? ??????????????????????????????? | | ?????????????# ??????????????????????????????? | | ?????????????# ?????????????????????????????? | | ?????????????# ??????????????????????????????? | | ?????????????# ??????????????????????????????? | | ?????????????# #??????????????????????????????? | | ?????????????# #??????????????????????????????? | | ?????????????# #??????????????????????????????? | | ?????????????# #??????????????????????????????? | | ?????????????# #??????????????????????????????? | | ?????????????# #??????????????????????????????? | | ?????????????# #??????????????????????????????? | | ????????????## #??????????????????????????????? | | ????????????# #??????????????????????????????? | | ????????????# #??????????????????????????????? | | ????????????# ################???????????????? | | ??????????# g @ k ????????? | | ?????????# gg Y ????????? | | ?????????# ##################+## ????????? | | ########## #????????????????????????????????? | | #????????????????????????????????? | | #????????????????????????????????? | | """" #????????????????????????????????? | | """"""" #????????????????????????????????? | | "" """ #????????#####################???? | | #????????# "" | # #???? | | #?######?# ""S # """ """ #???? | | ########## #? #?# "" # """ """ #???? | | ????????### #! #?# """ # """ """ #???? | | ???####### # # #?# """ # #???? | | ????# # / """ #?# = """ # [ #???? | | ????# """ # # """ #?# # #???? | | ????# """ # # """ #?# # #???? | | ????# """ # ##############+######+########???? | | ????# # !%= #???????? | | ????# """ +% ! #???????? | | ????# """ # #???????? | | ????# """ ###########+##################???????? | | ????# #???????# #?????????????????????? | | ????# ] #???????# !#?????????????????????? | | ????# #???????# #?????????????????????? | +----------------------------------------------------+ Best States ------------- Heat Dissipation 25 Energy Generation 10 Energy Capacity 250 Matter Stores 400 Matter Capacity 400 Sight Range 16 Terrain Scan Range 16 Terrain Scan Density 10 Evasion (%) 50 Recoil Reduction 2 Item Schematics ----------------- None Robot Schematics ------------------ None Fabricated ------------ Nothing Alien Tech Used ----------------- None Achievements -------------- Everything Is Under Control Challenges ------------ None RPGLIKE | -11 -10 -9 --------- Run | Scr Mat Mat Levels Raised 2 | . 1 1 XP Earned 7030 | 3000 2245 1785 XP Spent 1000 | 500 500 . Upgrades 2 | 1 1 . Propulsion Slot 1 | . 1 . Weapon Slot 1 | 1 . . Protomatter Created 247 | . 212 35 Integrity Restored 593 | . 521 72 Core 593 | . 521 72 Protomatter Decayed 48 | . 37 11 Game ------ Seed RemoteBoreKit Manual? 0 Play Time 00:25:54 Cumulative 14.6 hours Start 2020.04.27 @ 17:47:30 End 2020.04.27 @ 18:12:21 Sessions 1 Manual Loads 0 Difficulty Rogue Special Mode Winter2019/RPGLIKE Game No. 19 Rogue 19 Adventurer 0 Explorer 0 Win Type - Total 0 Types 0/0/0/0/0/0/0 Lore% 12 Gallery% 23 Achievement% 12 Wizard Run 0 Options --------- ASCII 0 Keyboard 0 Movement Mouse Keybinds 0 Fullscreen 1 Font 18/SmallcapsGlow Map View 76x50 Tactical HUD 1 Map Filters NONE Filters NONE Steam 1 RUN: 4d9f4517-3cbc-4e25-85a7-f90ff2815ddb